Workbook

Sheet Tabulka č. 1
A1: Porovnání výkonů krajských a obecních škol v jednotlivých věkových kategoriích v letech 2007/08 – 2017/18
C3: Výkony | D3: Výkony | E3: Výkony | F3: Výkony | G3: Výkony | H3: Výkony | I3: Výkony | J3: Výkony | K3: Výkony | L3: Výkony | M3: Výkony | N3: Výkony | O3: Výkony | P3: Výkony | Q3: Výkony | R3: Výkony | S3: Výkony | T3: Výkony | U3: Výkony | V3: Výkony | W3: Změna 16/17 | Y3: Změna 16/17 | AA3: Změna 17/18 | AC3: Změna 17/18
B4: Výkony | C4: bez *NS | D4: vč.*NS | E4: bez *NS | F4: vč.*NS | G4: bez *NS | H4: vč.*NS | I4: bez *NS | J4: vč.*NS | K4: bez *NS | L4: vč.*NS | M4: bez *NS | N4: vč.*NS | O4: bez *NS | P4: vč.*NS | Q4: bez *NS | R4: vč.*NS | S4: bez *NS | T4: vč.*NS | U4: bez *NS | V4: vč.*NS | W4: oproti 15/16 | Y4: oproti 15/16 | AA4: oproti 16/17 | AC4: oproti 16/17
A5: Kraj | D5: 1.ročníky | F5: 1.ročníky | H5: 1.-2.ročníky | J5: 1.-2.ročníky | L5: 1.-2.ročníky | N5: 1.-2.ročníky | P5: 1.-2.ročníky | R5: 1.-2.ročníky | T5: 1.-2.ročníky | V5: 1.-2.ročníky | W5: bez *NS | Y5: vč. *NS 1.-2.ročníky | AA5: bez *NS | AC5: vč. *NS 1.-2.ročníky
B6: 07/08 | C6: 08/09 | D6: 08/09 | E6: 09/10 | F6: 09/10 | G6: 10/11 | H6: 10/11 | I6: 11/12 | J6: 11/12 | K6: 12/13 | L6: 12/13 | M6: 13/14 | N6: 13/14 | O6: 14/15 | P6: 14/15 | Q6: 15/16 | R6: 15/16 | S6: 16/17 | T6: 16/17 | U6: 17/18 | V6: 17/18 | W6: absolutní | X6: relativní | Y6: absolutní | Z6: relativní | AA6: absolutní | AB6: relativní | AC6: absolutní | AD6: relativní
A7: 3 - 5 let | B7: 29273.5 | C7: 30806 | D7: 30806 | E7: 32788.5 | F7: 32788.5 | G7: 34480 | H7: 34480 | I7: 35936.5 | J7: 35936.5 | K7: 37042.5 | L7: 37042.5 | M7: 38415 | N7: 38415 | O7: 39239 | P7: 39239 | Q7: 39518 | R7: 39518 | S7: 39656 | T7: 39656 | U7: 39806.8 | V7: 39806.8 | W7: 138 | X7: 100.349208 | Y7: 138 | Z7: 100.349208 | AA7: 150.8 | AB7: 100.3802703 | AC7: 150.8 | AD7: 100.3802703
A8: 6 - 14 let | B8: 82206.5 | C8: 79494.25 | D8: 79494.25 | E8: 78287.25 | F8: 78287.25 | G8: 79359.5 | H8: 79359.5 | I8: 81172.25 | J8: 81172.25 | K8: 84373.25 | L8: 84373.25 | M8: 87992.75 | N8: 87992.75 | O8: 92633.25 | P8: 92633.25 | Q8: 97576.75 | R8: 97576.75 | S8: 101876.5 | T8: 101876.5 | U8: 105278 | V8: 105278 | W8: 4299.75 | X8: 104.4065313 | Y8: 4299.75 | Z8: 104.4065313 | AA8: 3401.5 | AB8: 103.3388465 | AC8: 3401.5 | AD8: 103.3388465
A9: 15 - 18 let | B9: 45139 | C9: 44073 | D9: 44798 | E9: 43388 | F9: 44091 | G9: 41845 | H9: 42959 | I9: 40716 | J9: 41786 | K9: 39303 | L9: 40348 | M9: 38271 | N9: 39240 | O9: 37963 | P9: 38806 | Q9: 38113 | R9: 38872 | S9: 38794 | T9: 39513 | U9: 39034 | V9: 39698 | W9: 681 | X9: 101.7867919 | Y9: 641 | Z9: 101.6490019 | AA9: 240 | AB9: 100.6186524 | AC9: 185 | AD9: 100.4682003
A10: 19 - 21 let | B10: 2371 | C10: 2397 | D10: 2397 | E10: 2411 | F10: 2411 | G10: 2638 | H10: 2638 | I10: 2612 | J10: 2612 | K10: 2617 | L10: 2617 | M10: 2687 | N10: 2687 | O10: 2637 | P10: 2637 | Q10: 2463 | R10: 2463 | S10: 2119 | T10: 2119 | U10: 1852 | V10: 1852 | W10: -344 | X10: 86.03329273 | Y10: -344 | Z10: 86.03329273 | AA10: -267 | AB10: 87.39971685 | AC10: -267 | AD10: 87.39971685
A11: 3 - 18 let v KZÚV | B11: 107 | C11: 102 | D11: 102 | E11: 102 | F11: 102 | G11: 113 | H11: 113 | I11: 119 | J11: 119 | K11: 119 | L11: 119 | M11: 125 | N11: 125 | O11: 125 | P11: 125 | Q11: 125 | R11: 125 | S11: 125 | T11: 125 | U11: 113 | V11: 113 | W11: 0 | X11: 100 | Y11: 0 | Z11: 100 | AA11: -12 | AB11: 90.4 | AC11: -12 | AD11: 90.4
A12: Hl.m.Praha | B12: =SUM(B7:B11) -> 159097 | C12: 156872.25 | D12: 157597.25 | E12: 156976.75 | F12: 157679.75 | G12: 158435.5 | H12: 159549.5 | I12: 160555.75 | J12: 161625.75 | K12: 163454.75 | L12: 164499.75 | M12: 167490.75 | N12: 168459.75 | O12: 172597.25 | P12: 173440.25 | Q12: 177795.75 | R12: 178554.75 | S12: 182570.5 | T12: 183289.5 | U12: 186083.8 | V12: 186747.8 | W12: 4774.75 | X12: 102.6855254 | Y12: 4734.75 | Z12: 102.6517077 | AA12: 3513.3 | AB12: 101.9243525 | AC12: 3458.3 | AD12: 101.8867966
A13: 3 - 5 let | B13: 32461.5 | C13: 34185 | D13: 34185 | E13: 36189 | F13: 36189 | G13: 38309 | H13: 38309 | I13: 41267 | J13: 41267 | K13: 43735.5 | L13: 43735.5 | M13: 45614 | N13: 45614 | O13: 46788 | P13: 46788 | Q13: 47665 | R13: 47665 | S13: 47449.5 | T13: 47449.5 | U13: 47603.65 | V13: 47603.65 | W13: -215.5 | X13: 99.54788629 | Y13: -215.5 | Z13: 99.54788629 | AA13: 154.15 | AB13: 100.3248717 | AC13: 154.15 | AD13: 100.3248717
A14: 6 - 14 let | B14: 100039.5 | C14: 98218.25 | D14: 98218.25 | E14: 97495.5 | F14: 97495.5 | G14: 98257.5 | H14: 98257.5 | I14: 100607 | J14: 100607 | K14: 103868.75 | L14: 103868.75 | M14: 107827.25 | N14: 107827.25 | O14: 113003.75 | P14: 113003.75 | Q14: 118318.75 | R14: 118318.75 | S14: 123276 | T14: 123276 | U14: 127794 | V14: 127794 | W14: 4957.25 | X14: 104.1897417 | Y14: 4957.25 | Z14: 104.1897417 | AA14: 4518 | AB14: 103.6649469 | AC14: 4518 | AD14: 103.6649469
A15: 15 - 18 let | B15: 36330 | C15: 36053 | D15: 37015 | E15: 35541 | F15: 36542 | G15: 34282 | H15: 36007 | I15: 32432 | J15: 34035 | K15: 30748 | L15: 32164 | M15: 29615 | N15: 30927 | O15: 28908 | P15: 30081 | Q15: 28387 | R15: 29441 | S15: 28403 | T15: 29330 | U15: 28340 | V15: 29243 | W15: 16 | X15: 100.0563638 | Y15: -111 | Z15: 99.62297476 | AA15: -63 | AB15: 99.77819244 | AC15: -87 | AD15: 99.70337538
A16: 19 - 21 let | B16: 1167 | C16: 1117 | D16: 1117 | E16: 1220 | F16: 1220 | G16: 1263 | H16: 1263 | I16: 1244 | J16: 1244 | K16: 1323 | L16: 1323 | M16: 1243 | N16: 1243 | O16: 1127 | P16: 1127 | Q16: 953 | R16: 953 | S16: 820 | T16: 820 | U16: 716 | V16: 716 | W16: -133 | X16: 86.04407135 | Y16: -133 | Z16: 86.04407135 | AA16: -104 | AB16: 87.31707317 | AC16: -104 | AD16: 87.31707317
A17: 3 - 18 let v KZÚV | B17: 534 | C17: 508 | D17: 508 | E17: 522 | F17: 522 | G17: 524 | H17: 524 | I17: 524 | J17: 524 | K17: 524 | L17: 524 | M17: 524 | N17: 524 | O17: 524 | P17: 524 | Q17: 524 | R17: 524 | S17: 524 | T17: 524 | U17: 524 | V17: 524 | W17: 0 | X17: 100 | Y17: 0 | Z17: 100 | AA17: 0 | AB17: 100 | AC17: 0 | AD17: 100
A18: Středočeský | B18: =SUM(B13:B17) -> 170532 | C18: 170081.25 | D18: 171043.25 | E18: 170967.5 | F18: 171968.5 | G18: 172635.5 | H18: 174360.5 | I18: 176074 | J18: 177677 | K18: 180199.25 | L18: 181615.25 | M18: 184823.25 | N18: 186135.25 | O18: 190350.75 | P18: 191523.75 | Q18: 195847.75 | R18: 196901.75 | S18: 200472.5 | T18: 201399.5 | U18: 204977.65 | V18: 205880.65 | W18: 4624.75 | X18: 102.3614006 | Y18: 4497.75 | Z18: 102.2842611 | AA18: 4505.15 | AB18: 102.2472658 | AC18: 4481.15 | AD18: 102.2250055
A19: 3 - 5 let | B19: 17989 | C19: 18904 | D19: 18904 | E19: 20114 | F19: 20114 | G19: 20895.5 | H19: 20895.5 | I19: 21629 | J19: 21629 | K19: 22393.5 | L19: 22393.5 | M19: 22990.5 | N19: 22990.5 | O19: 22974.5 | P19: 22974.5 | Q19: 22825 | R19: 22825 | S19: 22508 | T19: 22508 | U19: 22463.4 | V19: 22463.4 | W19: -317 | X19: 98.61117196 | Y19: -317 | Z19: 98.61117196 | AA19: -44.6 | AB19: 99.80184823 | AC19: -44.6 | AD19: 99.80184823
A20: 6 - 14 let | B20: 54490.5 | C20: 52623.25 | D20: 52623.25 | E20: 51052.5 | F20: 51052.5 | G20: 50698 | H20: 50698 | I20: 50768.75 | J20: 50768.75 | K20: 51392.75 | L20: 51392.75 | M20: 52540.25 | N20: 52540.25 | O20: 53714.75 | P20: 53714.75 | Q20: 55006.75 | R20: 55006.75 | S20: 56280.25 | T20: 56280.25 | U20: 57175.5 | V20: 57175.5 | W20: 1273.5 | X20: 102.3151704 | Y20: 1273.5 | Z20: 102.3151704 | AA20: 895.25 | AB20: 101.5907001 | AC20: 895.25 | AD20: 101.5907001
A21: 15 - 18 let | B21: 27877 | C21: 27549 | D21: 28146 | E21: 27303 | F21: 27943 | G21: 26131 | H21: 27215 | I21: 24940 | J21: 26071 | K21: 23755 | L21: 24890 | M21: 22566 | N21: 23627 | O21: 21898 | P21: 22772 | Q21: 21397 | R21: 22227 | S21: 21087 | T21: 21845 | U21: 20736 | V21: 21439 | W21: -310 | X21: 98.55119877 | Y21: -382 | Z21: 98.28136951 | AA21: -351 | AB21: 98.33546735 | AC21: -406 | AD21: 98.14145113
A22: 19 - 21 let | B22: 1812 | C22: 1510 | D22: 1510 | E22: 1500 | F22: 1500 | G22: 1447 | H22: 1447 | I22: 1367 | J22: 1367 | K22: 1293 | L22: 1293 | M22: 1151 | N22: 1151 | O22: 1014 | P22: 1014 | Q22: 831 | R22: 831 | S22: 667 | T22: 667 | U22: 554 | V22: 554 | W22: -164 | X22: 80.26474128 | Y22: -164 | Z22: 80.26474128 | AA22: -113 | AB22: 83.05847076 | AC22: -113 | AD22: 83.05847076
A23: 3 - 18 let v KZÚV | B23: 301 | C23: 298 | D23: 298 | E23: 298 | F23: 298 | G23: 298 | H23: 298 | I23: 298 | J23: 298 | K23: 298 | L23: 298 | M23: 298 | N23: 298 | O23: 290 | P23: 290 | Q23: 282 | R23: 282 | S23: 287 | T23: 287 | U23: 288 | V23: 288 | W23: 5 | X23: 101.7730496 | Y23: 5 | Z23: 101.7730496 | AA23: 1 | AB23: 100.3484321 | AC23: 1 | AD23: 100.3484321
A24: Jihočeský | B24: =SUM(B19:B23) -> 102469.5 | C24: 100884.25 | D24: 101481.25 | E24: 100267.5 | F24: 100907.5 | G24: 99469.5 | H24: 100553.5 | I24: 99002.75 | J24: 100133.75 | K24: 99132.25 | L24: 100267.25 | M24: 99545.75 | N24: 100606.75 | O24: 99891.25 | P24: 100765.25 | Q24: 100341.75 | R24: 101171.75 | S24: 100829.25 | T24: 101587.25 | U24: 101216.9 | V24: 101919.9 | W24: 487.5 | X24: 100.4858396 | Y24: 415.5 | Z24: 100.4106878 | AA24: 387.65 | AB24: 100.3844619 | AC24: 332.65 | AD24: 100.3274525
A25: 3 - 5 let | B25: 14812 | C25: 15620 | D25: 15620 | E25: 16476.5 | F25: 16476.5 | G25: 17553.5 | H25: 17553.5 | I25: 18291 | J25: 18291 | K25: 18860.5 | L25: 18860.5 | M25: 19219.5 | N25: 19219.5 | O25: 19397 | P25: 19397 | Q25: 19074.5 | R25: 19074.5 | S25: 18532.5 | T25: 18532.5 | U25: 18354.7 | V25: 18354.7 | W25: -542 | X25: 97.15851005 | Y25: -542 | Z25: 97.15851005 | AA25: -177.8 | AB25: 99.04060434 | AC25: -177.8 | AD25: 99.04060434
A26: 6 - 14 let | B26: 46380.75 | C26: 45178 | D26: 45178 | E26: 43892.75 | F26: 43892.75 | G26: 43691.25 | H26: 43691.25 | I26: 44131.75 | J26: 44131.75 | K26: 45074.25 | L26: 45074.25 | M26: 46300.5 | N26: 46300.5 | O26: 47830.75 | P26: 47830.75 | Q26: 49323.5 | R26: 49323.5 | S26: 50691 | T26: 50691 | U26: 51700.25 | V26: 51700.25 | W26: 1367.5 | X26: 102.7725121 | Y26: 1367.5 | Z26: 102.7725121 | AA26: 1009.25 | AB26: 101.9909846 | AC26: 1009.25 | AD26: 101.9909846
A27: 15 - 18 let | B27: 21481 | C27: 21123 | D27: 21832 | E27: 21062 | F27: 21771 | G27: 20213 | H27: 21357 | I27: 19533 | J27: 20526 | K27: 18386 | L27: 19216 | M27: 17671 | N27: 18401 | O27: 17184 | P27: 17809 | Q27: 16886 | R27: 17476 | S27: 16946 | T27: 17534 | U27: 17001 | V27: 17523 | W27: 60 | X27: 100.3553239 | Y27: 58 | Z27: 100.3318837 | AA27: 55 | AB27: 100.3245604 | AC27: -11 | AD27: 99.93726474
A28: 19 - 21 let | B28: 803 | C28: 797 | D28: 797 | E28: 895 | F28: 895 | G28: 911 | H28: 911 | I28: 872 | J28: 872 | K28: 828 | L28: 828 | M28: 854 | N28: 854 | O28: 864 | P28: 864 | Q28: 841 | R28: 841 | S28: 759 | T28: 759 | U28: 671 | V28: 671 | W28: -82 | X28: 90.24970273 | Y28: -82 | Z28: 90.24970273 | AA28: -88 | AB28: 88.4057971 | AC28: -88 | AD28: 88.4057971
A29: 3 - 18 let v KZÚV | B29: 286 | C29: 286 | D29: 286 | E29: 286 | F29: 286 | G29: 290 | H29: 290 | I29: 290 | J29: 290 | K29: 290 | L29: 290 | M29: 290 | N29: 290 | O29: 290 | P29: 290 | Q29: 290 | R29: 290 | S29: 292 | T29: 292 | U29: 290 | V29: 290 | W29: 2 | X29: 100.6896552 | Y29: 2 | Z29: 100.6896552 | AA29: -2 | AB29: 99.31506849 | AC29: -2 | AD29: 99.31506849
A30: Plzeňský | B30: =SUM(B25:B29) -> 83762.75 | C30: 83004 | D30: 83713 | E30: 82612.25 | F30: 83321.25 | G30: 82658.75 | H30: 83802.75 | I30: 83117.75 | J30: 84110.75 | K30: 83438.75 | L30: 84268.75 | M30: 84335 | N30: 85065 | O30: 85565.75 | P30: 86190.75 | Q30: 86415 | R30: 87005 | S30: 87220.5 | T30: 87808.5 | U30: 88016.95 | V30: 88538.95 | W30: 805.5 | X30: 100.9321298 | Y30: 803.5 | Z30: 100.9235101 | AA30: 796.45 | AB30: 100.9131454 | AC30: 730.45 | AD30: 100.8318671
A31: 3 - 5 let | B31: 7753 | C31: 8095 | D31: 8095 | E31: 8498 | F31: 8498 | G31: 8855 | H31: 8855 | I31: 9189.5 | J31: 9189.5 | K31: 9424.5 | L31: 9424.5 | M31: 9517 | N31: 9517 | O31: 9356.5 | P31: 9356.5 | Q31: 9215.5 | R31: 9215.5 | S31: 8793.5 | T31: 8793.5 | U31: 8862.35 | V31: 8862.35 | W31: -422 | X31: 95.4207585 | Y31: -422 | Z31: 95.4207585 | AA31: 68.85 | AB31: 100.7829647 | AC31: 68.85 | AD31: 100.7829647
A32: 6 - 14 let | B32: 27157.25 | C32: 26152.25 | D32: 26152.25 | E32: 25295 | F32: 25295 | G32: 24868.75 | H32: 24868.75 | I32: 24472 | J32: 24472 | K32: 24647.25 | L32: 24647.25 | M32: 24916.75 | N32: 24916.75 | O32: 25550.25 | P32: 25550.25 | Q32: 25889.25 | R32: 25889.25 | S32: 26378.5 | T32: 26378.5 | U32: 26263 | V32: 26263 | W32: 489.25 | X32: 101.8897805 | Y32: 489.25 | Z32: 101.8897805 | AA32: -115.5 | AB32: 99.56214341 | AC32: -115.5 | AD32: 99.56214341
A33: 15 - 18 let | B33: 11796 | C33: 11552 | D33: 11739 | E33: 11334 | F33: 11560 | G33: 10954 | H33: 11324 | I33: 10226 | J33: 10560 | K33: 9543 | L33: 9804 | M33: 8997 | N33: 9244 | O33: 8555 | P33: 8775 | Q33: 8532 | R33: 8748 | S33: 8413 | T33: 8596 | U33: 8259 | V33: 8421 | W33: -119 | X33: 98.60525082 | Y33: -152 | Z33: 98.26245999 | AA33: -154 | AB33: 98.16949958 | AC33: -175 | AD33: 97.96416938
A34: 19 - 21 let | B34: 271 | C34: 291 | D34: 291 | E34: 348 | F34: 348 | G34: 402 | H34: 402 | I34: 414 | J34: 414 | K34: 381 | L34: 381 | M34: 404 | N34: 404 | O34: 408 | P34: 408 | Q34: 412 | R34: 412 | S34: 339 | T34: 339 | U34: 269 | V34: 269 | W34: -73 | X34: 82.2815534 | Y34: -73 | Z34: 82.2815534 | AA34: -70 | AB34: 79.35103245 | AC34: -70 | AD34: 79.35103245
A35: 3 - 18 let v KZÚV | B35: 282 | C35: 292 | D35: 292 | E35: 264 | F35: 264 | G35: 264 | H35: 264 | I35: 264 | J35: 264 | K35: 220 | L35: 220 | M35: 220 | N35: 220 | O35: 220 | P35: 220 | Q35: 220 | R35: 220 | S35: 220 | T35: 220 | U35: 220 | V35: 220 | W35: 0 | X35: 100 | Y35: 0 | Z35: 100 | AA35: 0 | AB35: 100 | AC35: 0 | AD35: 100
A36: Karlovarský | B36: =SUM(B31:B35) -> 47259.25 | C36: 46382.25 | D36: 46569.25 | E36: 45739 | F36: 45965 | G36: 45343.75 | H36: 45713.75 | I36: 44565.5 | J36: 44899.5 | K36: 44215.75 | L36: 44476.75 | M36: 44054.75 | N36: 44301.75 | O36: 44089.75 | P36: 44309.75 | Q36: 44268.75 | R36: 44484.75 | S36: 44144 | T36: 44327 | U36: 43873.35 | V36: 44035.35 | W36: -124.75 | X36: 99.7181985 | Y36: -157.75 | Z36: 99.64538409 | AA36: -270.65 | AB36: 99.3868929 | AC36: -291.65 | AD36: 99.34204886
A37: 3 - 5 let | B37: 21839 | C37: 22518 | D37: 22518 | E37: 23258 | F37: 23258 | G37: 24240.5 | H37: 24240.5 | I37: 24962.5 | J37: 24962.5 | K37: 25452.5 | L37: 25452.5 | M37: 25906 | N37: 25906 | O37: 25893.5 | P37: 25893.5 | Q37: 25302 | R37: 25302 | S37: 24674.5 | T37: 24674.5 | U37: 24731.55 | V37: 24731.55 | W37: -627.5 | X37: 97.5199589 | Y37: -627.5 | Z37: 97.5199589 | AA37: 57.05 | AB37: 100.2312104 | AC37: 57.05 | AD37: 100.2312104
A38: 6 - 14 let | B38: 75293.5 | C38: 72830.25 | D38: 72830.25 | E38: 70914 | F38: 70914 | G38: 70515.5 | H38: 70515.5 | I38: 70773.75 | J38: 70773.75 | K38: 71339 | L38: 71339 | M38: 72290.75 | N38: 72290.75 | O38: 74038.25 | P38: 74038.25 | Q38: 75680.25 | R38: 75680.25 | S38: 76903.75 | T38: 76903.75 | U38: 77636.5 | V38: 77636.5 | W38: 1223.5 | X38: 101.6166701 | Y38: 1223.5 | Z38: 101.6166701 | AA38: 732.75 | AB38: 100.9528144 | AC38: 732.75 | AD38: 100.9528144
A39: 15 - 18 let | B39: 32767 | C39: 32571 | D39: 33319 | E39: 32501 | F39: 33230 | G39: 31552 | H39: 32738 | I39: 29866 | J39: 31003 | K39: 28387 | L39: 29299 | M39: 26968 | N39: 27723 | O39: 26182 | P39: 26817 | Q39: 25337 | R39: 25855 | S39: 24789 | T39: 25304 | U39: 24338 | V39: 24787 | W39: -548 | X39: 97.83715515 | Y39: -551 | Z39: 97.86888416 | AA39: -451 | AB39: 98.18064464 | AC39: -517 | AD39: 97.95684477
A40: 19 - 21 let | B40: 1126 | C40: 1127 | D40: 1127 | E40: 1258 | F40: 1258 | G40: 1372 | H40: 1372 | I40: 1364 | J40: 1364 | K40: 1319 | L40: 1319 | M40: 1367 | N40: 1367 | O40: 1277 | P40: 1277 | Q40: 1096 | R40: 1096 | S40: 877 | T40: 877 | U40: 707 | V40: 707 | W40: -219 | X40: 80.01824818 | Y40: -219 | Z40: 80.01824818 | AA40: -170 | AB40: 80.61573546 | AC40: -170 | AD40: 80.61573546
A41: 3 - 18 let v KZÚV | B41: 805 | C41: 804 | D41: 804 | E41: 804 | F41: 804 | G41: 782 | H41: 782 | I41: 782 | J41: 782 | K41: 765 | L41: 765 | M41: 765 | N41: 765 | O41: 765 | P41: 765 | Q41: 765 | R41: 765 | S41: 768 | T41: 768 | U41: 768 | V41: 768 | W41: 3 | X41: 100.3921569 | Y41: 3 | Z41: 100.3921569 | AA41: 0 | AB41: 100 | AC41: 0 | AD41: 100
A42: Ústecký | B42: =SUM(B37:B41) -> 131830.5 | C42: 129850.25 | D42: 130598.25 | E42: 128735 | F42: 129464 | G42: 128462 | H42: 129648 | I42: 127748.25 | J42: 128885.25 | K42: 127262.5 | L42: 128174.5 | M42: 127296.75 | N42: 128051.75 | O42: 128155.75 | P42: 128790.75 | Q42: 128180.25 | R42: 128698.25 | S42: 128012.25 | T42: 128527.25 | U42: 128181.05 | V42: 128630.05 | W42: -168 | X42: 99.86893457 | Y42: -171 | Z42: 99.86713106 | AA42: 168.8 | AB42: 100.1318624 | AC42: 102.8 | AD42: 100.079983
A43: 3 - 5 let | B43: 12543 | C43: 13063.5 | D43: 13063.5 | E43: 13335 | F43: 13335 | G43: 14048 | H43: 14048 | I43: 14805.5 | J43: 14805.5 | K43: 15296 | L43: 15296 | M43: 15519 | N43: 15519 | O43: 15435 | P43: 15435 | Q43: 15105 | R43: 15105 | S43: 14831 | T43: 14831 | U43: 14593.35 | V43: 14593.35 | W43: -274 | X43: 98.18603112 | Y43: -274 | Z43: 98.18603112 | AA43: -237.65 | AB43: 98.39761311 | AC43: -237.65 | AD43: 98.39761311
A44: 6 - 14 let | B44: 38785 | C44: 37505.5 | D44: 37505.5 | E44: 36351.75 | F44: 36351.75 | G44: 36098.75 | H44: 36098.75 | I44: 36224.75 | J44: 36224.75 | K44: 36434.75 | L44: 36434.75 | M44: 37262.5 | N44: 37262.5 | O44: 38259.25 | P44: 38259.25 | Q44: 39393.25 | R44: 39393.25 | S44: 40455.75 | T44: 40455.75 | U44: 41220.5 | V44: 41220.5 | W44: 1062.5 | X44: 102.6971626 | Y44: 1062.5 | Z44: 102.6971626 | AA44: 764.75 | AB44: 101.890337 | AC44: 764.75 | AD44: 101.890337
A45: 15 - 18 let | B45: 16568 | C45: 16240 | D45: 16608 | E45: 15788 | F45: 16253 | G45: 15061 | H45: 15852 | I45: 14315 | J45: 14971 | K45: 13588 | L45: 14085 | M45: 13043 | N45: 13471 | O45: 12741 | P45: 13119 | Q45: 12426 | R45: 12751 | S45: 12215 | T45: 12538 | U45: 12119 | V45: 12423 | W45: -211 | X45: 98.30194753 | Y45: -213 | Z45: 98.32954278 | AA45: -96 | AB45: 99.21408105 | AC45: -115 | AD45: 99.08278832
A46: 19 - 21 let | B46: 530 | C46: 501 | D46: 501 | E46: 489 | F46: 489 | G46: 470 | H46: 470 | I46: 492 | J46: 492 | K46: 473 | L46: 473 | M46: 429 | N46: 429 | O46: 385 | P46: 385 | Q46: 314 | R46: 314 | S46: 233 | T46: 233 | U46: 248 | V46: 248 | W46: -81 | X46: 74.20382166 | Y46: -81 | Z46: 74.20382166 | AA46: 15 | AB46: 106.4377682 | AC46: 15 | AD46: 106.4377682
A47: 3 - 18 let v KZÚV | B47: 297 | C47: 240 | D47: 240 | E47: 240 | F47: 240 | G47: 240 | H47: 240 | I47: 240 | J47: 240 | K47: 240 | L47: 240 | M47: 240 | N47: 240 | O47: 232 | P47: 232 | Q47: 230 | R47: 230 | S47: 230 | T47: 230 | U47: 230 | V47: 230 | W47: 0 | X47: 100 | Y47: 0 | Z47: 100 | AA47: 0 | AB47: 100 | AC47: 0 | AD47: 100
A48: Liberecký | B48: =SUM(B43:B47) -> 68723 | C48: 67550 | D48: 67918 | E48: 66203.75 | F48: 66668.75 | G48: 65917.75 | H48: 66708.75 | I48: 66077.25 | J48: 66733.25 | K48: 66031.75 | L48: 66528.75 | M48: 66493.5 | N48: 66921.5 | O48: 67052.25 | P48: 67430.25 | Q48: 67468.25 | R48: 67793.25 | S48: 67964.75 | T48: 68287.75 | U48: 68410.85 | V48: 68714.85 | W48: 496.5 | X48: 100.7359017 | Y48: 494.5 | Z48: 100.7294237 | AA48: 446.1 | AB48: 100.6563697 | AC48: 427.1 | AD48: 100.6254416
A49: 3 - 5 let | B49: 16063.5 | C49: 16659 | D49: 16659 | E49: 17459.5 | F49: 17459.5 | G49: 18245 | H49: 18245 | I49: 18982.5 | J49: 18982.5 | K49: 19442 | L49: 19442 | M49: 19722 | N49: 19722 | O49: 19792 | P49: 19792 | Q49: 19573.5 | R49: 19573.5 | S49: 19030.5 | T49: 19030.5 | U49: 18883.6 | V49: 18883.6 | W49: -543 | X49: 97.22584106 | Y49: -543 | Z49: 97.22584106 | AA49: -146.9 | AB49: 99.22808124 | AC49: -146.9 | AD49: 99.22808124
A50: 6 - 14 let | B50: 48353.25 | C50: 46575.75 | D50: 46575.75 | E50: 45186.75 | F50: 45186.75 | G50: 44854.5 | H50: 44854.5 | I50: 44656.75 | J50: 44656.75 | K50: 45187 | L50: 45187 | M50: 45850 | N50: 45850 | O50: 46894.5 | P50: 46894.5 | Q50: 47863.5 | R50: 47863.5 | S50: 49001.75 | T50: 49001.75 | U50: 49515.5 | V50: 49515.5 | W50: 1138.25 | X50: 102.3781169 | Y50: 1138.25 | Z50: 102.3781169 | AA50: 513.75 | AB50: 101.0484319 | AC50: 513.75 | AD50: 101.0484319
A51: 15 - 18 let | B51: 23501 | C51: 23156 | D51: 23629 | E51: 22860 | F51: 23447 | G51: 22041 | H51: 22989 | I51: 21016 | J51: 21851 | K51: 19918 | L51: 20510 | M51: 18911 | N51: 19451 | O51: 18547 | P51: 19030 | Q51: 17893 | R51: 18326 | S51: 17664 | T51: 18068 | U51: 17297 | V51: 17697 | W51: -229 | X51: 98.7201699 | Y51: -258 | Z51: 98.59216414 | AA51: -367 | AB51: 97.9223279 | AC51: -371 | AD51: 97.946646
A52: 19 - 21 let | B52: 846 | C52: 805 | D52: 805 | E52: 825 | F52: 825 | G52: 797 | H52: 797 | I52: 779 | J52: 779 | K52: 767 | L52: 767 | M52: 797 | N52: 797 | O52: 725 | P52: 725 | Q52: 652 | R52: 652 | S52: 577 | T52: 577 | U52: 524 | V52: 524 | W52: -75 | X52: 88.49693252 | Y52: -75 | Z52: 88.49693252 | AA52: -53 | AB52: 90.81455806 | AC52: -53 | AD52: 90.81455806
A53: 3 - 18 let v KZÚV | B53: 311 | C53: 304 | D53: 304 | E53: 302 | F53: 302 | G53: 302 | H53: 302 | I53: 302 | J53: 302 | K53: 302 | L53: 302 | M53: 266 | N53: 266 | O53: 266 | P53: 266 | Q53: 266 | R53: 266 | S53: 266 | T53: 266 | U53: 266 | V53: 266 | W53: 0 | X53: 100 | Y53: 0 | Z53: 100 | AA53: 0 | AB53: 100 | AC53: 0 | AD53: 100
A54: Královéhradecký | B54: =SUM(B49:B53) -> 89074.75 | C54: 87499.75 | D54: 87972.75 | E54: 86633.25 | F54: 87220.25 | G54: 86239.5 | H54: 87187.5 | I54: 85736.25 | J54: 86571.25 | K54: 85616 | L54: 86208 | M54: 85546 | N54: 86086 | O54: 86224.5 | P54: 86707.5 | Q54: 86248 | R54: 86681 | S54: 86539.25 | T54: 86943.25 | U54: 86486.1 | V54: 86886.1 | W54: 291.25 | X54: 100.337689 | Y54: 262.25 | Z54: 100.3025461 | AA54: -53.15 | AB54: 99.93858278 | AC54: -57.15 | AD54: 99.93426747
A55: 3 - 5 let | B55: 15265.5 | C55: 15863 | D55: 15863 | E55: 16554 | F55: 16554 | G55: 17374 | H55: 17374 | I55: 17854 | J55: 17854 | K55: 18431 | L55: 18431 | M55: 18931.5 | N55: 18931.5 | O55: 18984.5 | P55: 18984.5 | Q55: 18822.5 | R55: 18822.5 | S55: 18478.5 | T55: 18478.5 | U55: 18364.4 | V55: 18364.4 | W55: -344 | X55: 98.17240005 | Y55: -344 | Z55: 98.17240005 | AA55: -114.1 | AB55: 99.38252564 | AC55: -114.1 | AD55: 99.38252564
A56: 6 - 14 let | B56: 45979.75 | C56: 44380.5 | D56: 44380.5 | E56: 43127.75 | F56: 43127.75 | G56: 42791.5 | H56: 42791.5 | I56: 42930.25 | J56: 42930.25 | K56: 43214 | L56: 43214 | M56: 43936 | N56: 43936 | O56: 44736.25 | P56: 44736.25 | Q56: 45534.5 | R56: 45534.5 | S56: 46485.5 | T56: 46485.5 | U56: 47082 | V56: 47082 | W56: 951 | X56: 102.0885263 | Y56: 951 | Z56: 102.0885263 | AA56: 596.5 | AB56: 101.2831958 | AC56: 596.5 | AD56: 101.2831958
A57: 15 - 18 let | B57: 20968 | C57: 20786 | D57: 21010 | E57: 20550 | F57: 20788 | G57: 20008 | H57: 20522 | I57: 18663 | J57: 19240 | K57: 17445 | L57: 17973 | M57: 16713 | N57: 17249 | O57: 16320 | P57: 16841 | Q57: 16309 | R57: 16772 | S57: 16413 | T57: 16906 | U57: 16379 | V57: 16836 | W57: 104 | X57: 100.6376847 | Y57: 134 | Z57: 100.7989506 | AA57: -34 | AB57: 99.79284713 | AC57: -70 | AD57: 99.58594582
A58: 19 - 21 let | B58: 1223 | C58: 1025 | D58: 1025 | E58: 992 | F58: 992 | G58: 1028 | H58: 1028 | I58: 1084 | J58: 1084 | K58: 1088 | L58: 1088 | M58: 1112 | N58: 1112 | O58: 1060 | P58: 1060 | Q58: 919 | R58: 919 | S58: 777 | T58: 777 | U58: 673 | V58: 673 | W58: -142 | X58: 84.5484222 | Y58: -142 | Z58: 84.5484222 | AA58: -104 | AB58: 86.61518662 | AC58: -104 | AD58: 86.61518662
A59: 3 - 18 let v KZÚV | B59: 176 | C59: 179 | D59: 179 | E59: 179 | F59: 179 | G59: 179 | H59: 179 | I59: 179 | J59: 179 | K59: 179 | L59: 179 | M59: 179 | N59: 179 | O59: 179 | P59: 179 | Q59: 179 | R59: 179 | S59: 179 | T59: 179 | U59: 179 | V59: 179 | W59: 0 | X59: 100 | Y59: 0 | Z59: 100 | AA59: 0 | AB59: 100 | AC59: 0 | AD59: 100
A60: Pardubický | B60: =SUM(B55:B59) -> 83612.25 | C60: 82233.5 | D60: 82457.5 | E60: 81402.75 | F60: 81640.75 | G60: 81380.5 | H60: 81894.5 | I60: 80710.25 | J60: 81287.25 | K60: 80357 | L60: 80885 | M60: 80871.5 | N60: 81407.5 | O60: 81279.75 | P60: 81800.75 | Q60: 81764 | R60: 82227 | S60: 82333 | T60: 82826 | U60: 82677.4 | V60: 83134.4 | W60: 569 | X60: 100.6959053 | Y60: 599 | Z60: 100.7284712 | AA60: 344.4 | AB60: 100.4183013 | AC60: 308.4 | AD60: 100.3723468
A61: 3 - 5 let | B61: 14314 | C61: 15019.5 | D61: 15019.5 | E61: 15612 | F61: 15612 | G61: 16235 | H61: 16235 | I61: 16899 | J61: 16899 | K61: 17418.5 | L61: 17418.5 | M61: 17818 | N61: 17818 | O61: 17818.5 | P61: 17818.5 | Q61: 17732.5 | R61: 17732.5 | S61: 17505 | T61: 17505 | U61: 17507.2 | V61: 17507.2 | W61: -227.5 | X61: 98.71704497 | Y61: -227.5 | Z61: 98.71704497 | AA61: 2.2 | AB61: 100.0125678 | AC61: 2.2 | AD61: 100.0125678
A62: 6 - 14 let | B62: 46930.5 | C62: 45007 | D62: 45007 | E62: 43504.25 | F62: 43504.25 | G62: 42728.25 | H62: 42728.25 | I62: 42504.75 | J62: 42504.75 | K62: 42703.75 | L62: 42703.75 | M62: 43068.5 | N62: 43068.5 | O62: 43886.75 | P62: 43886.75 | Q62: 44531 | R62: 44531 | S62: 45282 | T62: 45282 | U62: 45665.75 | V62: 45665.75 | W62: 751 | X62: 101.6864656 | Y62: 751 | Z62: 101.6864656 | AA62: 383.75 | AB62: 100.847467 | AC62: 383.75 | AD62: 100.847467
A63: 15 - 18 let | B63: 20667 | C63: 20516 | D63: 21051 | E63: 20368 | F63: 20913 | G63: 19184 | H63: 20123 | I63: 18348 | J63: 19177 | K63: 17249 | L63: 17945 | M63: 16434 | N63: 17066 | O63: 15856 | P63: 16404 | Q63: 15547 | R63: 15986 | S63: 15121 | T63: 15541 | U63: 14886 | V63: 15234 | W63: -426 | X63: 97.25992153 | Y63: -445 | Z63: 97.21631427 | AA63: -235 | AB63: 98.44586998 | AC63: -307 | AD63: 98.02458014
A64: 19 - 21 let | B64: 909 | C64: 868 | D64: 868 | E64: 857 | F64: 857 | G64: 788 | H64: 788 | I64: 674 | J64: 674 | K64: 723 | L64: 723 | M64: 687 | N64: 687 | O64: 670 | P64: 670 | Q64: 552 | R64: 552 | S64: 417 | T64: 417 | U64: 327 | V64: 327 | W64: -135 | X64: 75.54347826 | Y64: -135 | Z64: 75.54347826 | AA64: -90 | AB64: 78.41726619 | AC64: -90 | AD64: 78.41726619
A65: 3 - 18 let v KZÚV | B65: 239 | C65: 239 | D65: 239 | E65: 239 | F65: 239 | G65: 239 | H65: 239 | I65: 239 | J65: 239 | K65: 231 | L65: 231 | M65: 231 | N65: 231 | O65: 231 | P65: 231 | Q65: 231 | R65: 231 | S65: 231 | T65: 231 | U65: 231 | V65: 231 | W65: 0 | X65: 100 | Y65: 0 | Z65: 100 | AA65: 0 | AB65: 100 | AC65: 0 | AD65: 100
A66: Vysočina | B66: =SUM(B61:B65) -> 83059.5 | C66: 81649.5 | D66: 82184.5 | E66: 80580.25 | F66: 81125.25 | G66: 79174.25 | H66: 80113.25 | I66: 78664.75 | J66: 79493.75 | K66: 78325.25 | L66: 79021.25 | M66: 78238.5 | N66: 78870.5 | O66: 78462.25 | P66: 79010.25 | Q66: 78593.5 | R66: 79032.5 | S66: 78556 | T66: 78976 | U66: 78616.95 | V66: 78964.95 | W66: -37.5 | X66: 99.95228613 | Y66: -56.5 | Z66: 99.92851042 | AA66: 60.95 | AB66: 100.077588 | AC66: -11.05 | AD66: 99.98600841
A67: 3 - 5 let | B67: 30591 | C67: 32010.5 | D67: 32010.5 | E67: 34038.5 | F67: 34038.5 | G67: 35669.5 | H67: 35669.5 | I67: 37302.5 | J67: 37302.5 | K67: 38794.5 | L67: 38794.5 | M67: 40166.5 | N67: 40166.5 | O67: 40663 | P67: 40663 | Q67: 40749.5 | R67: 40749.5 | S67: 40245.5 | T67: 40245.5 | U67: 40321.05 | V67: 40321.05 | W67: -504 | X67: 98.76317501 | Y67: -504 | Z67: 98.76317501 | AA67: 75.55 | AB67: 100.1877229 | AC67: 75.55 | AD67: 100.1877229
A68: 6 - 14 let | B68: 95247.75 | C68: 91480.5 | D68: 91480.5 | E68: 88835.75 | F68: 88835.75 | G68: 88127 | H68: 88127 | I68: 88867 | J68: 88867 | K68: 90332.5 | L68: 90332.5 | M68: 92483.25 | N68: 92483.25 | O68: 95069.5 | P68: 95069.5 | Q68: 98212.25 | R68: 98212.25 | S68: 101476.75 | T68: 101476.75 | U68: 103690.75 | V68: 103690.75 | W68: 3264.5 | X68: 103.3239234 | Y68: 3264.5 | Z68: 103.3239234 | AA68: 2214 | AB68: 102.1817806 | AC68: 2214 | AD68: 102.1817806
A69: 15 - 18 let | B69: 45710 | C69: 45398 | D69: 46442 | E69: 44819 | F69: 45881 | G69: 43029 | H69: 44800 | I69: 40796 | J69: 42354 | K69: 38280 | L69: 39674 | M69: 36174 | N69: 37486 | O69: 34952 | P69: 36112 | Q69: 33876 | R69: 34904 | S69: 33357 | T69: 34305 | U69: 33213 | V69: 34113 | W69: -519 | X69: 98.46794191 | Y69: -599 | Z69: 98.28386431 | AA69: -144 | AB69: 99.5683065 | AC69: -192 | AD69: 99.44031482
A70: 19 - 21 let | B70: 2078 | C70: 1991 | D70: 1991 | E70: 1985 | F70: 1985 | G70: 2061 | H70: 2061 | I70: 2056 | J70: 2056 | K70: 1927 | L70: 1927 | M70: 1880 | N70: 1880 | O70: 1742 | P70: 1742 | Q70: 1647 | R70: 1647 | S70: 1502 | T70: 1502 | U70: 1368 | V70: 1368 | W70: -145 | X70: 91.19611415 | Y70: -145 | Z70: 91.19611415 | AA70: -134 | AB70: 91.07856192 | AC70: -134 | AD70: 91.07856192
A71: 3 - 18 let v KZÚV | B71: 397 | C71: 397 | D71: 397 | E71: 397 | F71: 397 | G71: 397 | H71: 397 | I71: 389 | J71: 389 | K71: 365 | L71: 365 | M71: 365 | N71: 365 | O71: 349 | P71: 349 | Q71: 349 | R71: 349 | S71: 349 | T71: 349 | U71: 349 | V71: 349 | W71: 0 | X71: 100 | Y71: 0 | Z71: 100 | AA71: 0 | AB71: 100 | AC71: 0 | AD71: 100
A72: Jihomoravský | B72: =SUM(B67:B71) -> 174023.75 | C72: 171277 | D72: 172321 | E72: 170075.25 | F72: 171137.25 | G72: 169283.5 | H72: 171054.5 | I72: 169410.5 | J72: 170968.5 | K72: 169699 | L72: 171093 | M72: 171068.75 | N72: 172380.75 | O72: 172775.5 | P72: 173935.5 | Q72: 174833.75 | R72: 175861.75 | S72: 176930.25 | T72: 177878.25 | U72: 178941.75 | V72: 179841.75 | W72: 2096.5 | X72: 101.1991392 | Y72: 2016.5 | Z72: 101.1466393 | AA72: 2011.5 | AB72: 101.1368887 | AC72: 1963.5 | AD72: 101.1038449
A73: 3 - 5 let | B73: 17964.5 | C73: 18623.5 | D73: 18623.5 | E73: 19517 | F73: 19517 | G73: 20397 | H73: 20397 | I73: 21396 | J73: 21396 | K73: 22022.5 | L73: 22022.5 | M73: 22635.5 | N73: 22635.5 | O73: 22609 | P73: 22609 | Q73: 22302.5 | R73: 22302.5 | S73: 21819 | T73: 21819 | U73: 21504 | V73: 21504 | W73: -483.5 | X73: 97.83208161 | Y73: -483.5 | Z73: 97.83208161 | AA73: -315 | AB73: 98.55630414 | AC73: -315 | AD73: 98.55630414
A74: 6 - 14 let | B74: 55313 | C74: 53183.25 | D74: 53183.25 | E74: 51632 | F74: 51632 | G74: 50971.5 | H74: 50971.5 | I74: 50880 | J74: 50880 | K74: 51348.75 | L74: 51348.75 | M74: 52289.5 | N74: 52289.5 | O74: 53576 | P74: 53576 | Q74: 54888.25 | R74: 54888.25 | S74: 56007.5 | T74: 56007.5 | U74: 56695.25 | V74: 56695.25 | W74: 1119.25 | X74: 102.0391432 | Y74: 1119.25 | Z74: 102.0391432 | AA74: 687.75 | AB74: 101.2279605 | AC74: 687.75 | AD74: 101.2279605
A75: 15 - 18 let | B75: 27082 | C75: 26399 | D75: 27311 | E75: 25761 | F75: 26850 | G75: 24625 | H75: 26395 | I75: 23289 | J75: 24744 | K75: 22372 | L75: 23523 | M75: 21601 | N75: 22598 | O75: 21095 | P75: 21893 | Q75: 20619 | R75: 21327 | S75: 20290 | T75: 21017 | U75: 20209 | V75: 20917 | W75: -329 | X75: 98.40438431 | Y75: -310 | Z75: 98.54644348 | AA75: -81 | AB75: 99.60078857 | AC75: -100 | AD75: 99.5241947
A76: 19 - 21 let | B76: 668 | C76: 628 | D76: 628 | E76: 600 | F76: 600 | G76: 626 | H76: 626 | I76: 625 | J76: 625 | K76: 647 | L76: 647 | M76: 616 | N76: 616 | O76: 607 | P76: 607 | Q76: 523 | R76: 523 | S76: 525 | T76: 525 | U76: 483 | V76: 483 | W76: 2 | X76: 100.3824092 | Y76: 2 | Z76: 100.3824092 | AA76: -42 | AB76: 92 | AC76: -42 | AD76: 92
A77: 3 - 18 let v KZÚV | B77: 376 | C77: 368 | D77: 368 | E77: 368 | F77: 368 | G77: 368 | H77: 368 | I77: 368 | J77: 368 | K77: 368 | L77: 368 | M77: 368 | N77: 368 | O77: 368 | P77: 368 | Q77: 360 | R77: 360 | S77: 360 | T77: 360 | U77: 360 | V77: 360 | W77: 0 | X77: 100 | Y77: 0 | Z77: 100 | AA77: 0 | AB77: 100 | AC77: 0 | AD77: 100
A78: Olomoucký | B78: =SUM(B73:B77) -> 101403.5 | C78: 99201.75 | D78: 100113.75 | E78: 97878 | F78: 98967 | G78: 96987.5 | H78: 98757.5 | I78: 96558 | J78: 98013 | K78: 96758.25 | L78: 97909.25 | M78: 97510 | N78: 98507 | O78: 98255 | P78: 99053 | Q78: 98692.75 | R78: 99400.75 | S78: 99001.5 | T78: 99728.5 | U78: 99251.25 | V78: 99959.25 | W78: 308.75 | X78: 100.3128396 | Y78: 327.75 | Z78: 100.3297259 | AA78: 249.75 | AB78: 100.2522689 | AC78: 230.75 | AD78: 100.2313782
A79: 3 - 5 let | B79: 16288 | C79: 16828.5 | D79: 16828.5 | E79: 17964.5 | F79: 17964.5 | G79: 18674.5 | H79: 18674.5 | I79: 19337 | J79: 19337 | K79: 19704.5 | L79: 19704.5 | M79: 20279.5 | N79: 20279.5 | O79: 20158.5 | P79: 20158.5 | Q79: 19880.5 | R79: 19880.5 | S79: 19558 | T79: 19558 | U79: 19447.1 | V79: 19447.1 | W79: -322.5 | X79: 98.3778074 | Y79: -322.5 | Z79: 98.3778074 | AA79: -110.9 | AB79: 99.43296861 | AC79: -110.9 | AD79: 99.43296861
A80: 6 - 14 let | B80: 50824 | C80: 48906.75 | D80: 48906.75 | E80: 47403 | F80: 47403 | G80: 46701 | H80: 46701 | I80: 46541 | J80: 46541 | K80: 46802 | L80: 46802 | M80: 47479 | N80: 47479 | O80: 48577.25 | P80: 48577.25 | Q80: 49333.5 | R80: 49333.5 | S80: 49986.75 | T80: 49986.75 | U80: 50735.25 | V80: 50735.25 | W80: 653.25 | X80: 101.3241509 | Y80: 653.25 | Z80: 101.3241509 | AA80: 748.5 | AB80: 101.4973968 | AC80: 748.5 | AD80: 101.4973968
A81: 15 - 18 let | B81: 25701 | C81: 25141 | D81: 25695 | E81: 24786 | F81: 25351 | G81: 23615 | H81: 24581 | I81: 22153 | J81: 22959 | K81: 20582 | L81: 21212 | M81: 19215 | N81: 19762 | O81: 18475 | P81: 19015 | Q81: 18263 | R81: 18789 | S81: 18143 | T81: 18668 | U81: 18105 | V81: 18598 | W81: -120 | X81: 99.3429338 | Y81: -121 | Z81: 99.35600617 | AA81: -38 | AB81: 99.79055283 | AC81: -70 | AD81: 99.62502678
A82: 19 - 21 let | B82: 793 | C82: 738 | D82: 738 | E82: 832 | F82: 832 | G82: 866 | H82: 866 | I82: 835 | J82: 835 | K82: 845 | L82: 845 | M82: 849 | N82: 849 | O82: 767 | P82: 767 | Q82: 634 | R82: 634 | S82: 543 | T82: 543 | U82: 412 | V82: 412 | W82: -91 | X82: 85.6466877 | Y82: -91 | Z82: 85.6466877 | AA82: -131 | AB82: 75.8747698 | AC82: -131 | AD82: 75.8747698
A83: 3 - 18 let v KZÚV | B83: 292 | C83: 292 | D83: 292 | E83: 294 | F83: 294 | G83: 294 | H83: 294 | I83: 294 | J83: 294 | K83: 294 | L83: 294 | M83: 294 | N83: 294 | O83: 294 | P83: 294 | Q83: 294 | R83: 294 | S83: 294 | T83: 294 | U83: 294 | V83: 294 | W83: 0 | X83: 100 | Y83: 0 | Z83: 100 | AA83: 0 | AB83: 100 | AC83: 0 | AD83: 100
A84: Zlínský | B84: =SUM(B79:B83) -> 93898 | C84: 91906.25 | D84: 92460.25 | E84: 91279.5 | F84: 91844.5 | G84: 90150.5 | H84: 91116.5 | I84: 89160 | J84: 89966 | K84: 88227.5 | L84: 88857.5 | M84: 88116.5 | N84: 88663.5 | O84: 88271.75 | P84: 88811.75 | Q84: 88405 | R84: 88931 | S84: 88524.75 | T84: 89049.75 | U84: 88993.35 | V84: 89486.35 | W84: 119.75 | X84: 100.1354561 | Y84: 118.75 | Z84: 100.1335305 | AA84: 468.6 | AB84: 100.5293435 | AC84: 436.6 | AD84: 100.4902877
A85: 3 - 5 let | B85: 32434.5 | C85: 33894.5 | D85: 33894.5 | E85: 35455.5 | F85: 35455.5 | G85: 36968 | H85: 36968 | I85: 38139 | J85: 38139 | K85: 39086 | L85: 39086 | M85: 39639 | N85: 39639 | O85: 39469.5 | P85: 39469.5 | Q85: 38816.5 | R85: 38816.5 | S85: 38146 | T85: 38146 | U85: 38225.75 | V85: 38225.75 | W85: -670.5 | X85: 98.27264179 | Y85: -670.5 | Z85: 98.27264179 | AA85: 79.75 | AB85: 100.2090652 | AC85: 79.75 | AD85: 100.2090652
A86: 6 - 14 let | B86: 110299.25 | C86: 105572 | D86: 105572 | E86: 101903.25 | F86: 101903.25 | G86: 100194 | H86: 100194 | I86: 99452 | J86: 99452 | K86: 99724.25 | L86: 99724.25 | M86: 100699.75 | N86: 100699.75 | O86: 102415 | P86: 102415 | Q86: 103868.75 | R86: 103868.75 | S86: 105543.25 | T86: 105543.25 | U86: 106160.5 | V86: 106160.5 | W86: 1674.5 | X86: 101.6121307 | Y86: 1674.5 | Z86: 101.6121307 | AA86: 617.25 | AB86: 100.5848313 | AC86: 617.25 | AD86: 100.5848313
A87: 15 - 18 let | B87: 53023 | C87: 51995 | D87: 53084 | E87: 49061 | F87: 50184 | G87: 46297 | H87: 48077 | I87: 43401 | J87: 44920 | K87: 40440 | L87: 41592 | M87: 37769 | N87: 38868 | O87: 36015 | P87: 37044 | Q87: 34656 | R87: 35654 | S87: 33772 | T87: 34711 | U87: 33442 | V87: 34324 | W87: -884 | X87: 97.44921514 | Y87: -943 | Z87: 97.35513547 | AA87: -330 | AB87: 99.02285917 | AC87: -387 | AD87: 98.88507966
A88: 19 - 21 let | B88: 917 | C88: 858 | D88: 858 | E88: 948 | F88: 948 | G88: 990 | H88: 990 | I88: 929 | J88: 929 | K88: 918 | L88: 918 | M88: 868 | N88: 868 | O88: 892 | P88: 892 | Q88: 826 | R88: 826 | S88: 760 | T88: 760 | U88: 618 | V88: 618 | W88: -66 | X88: 92.00968523 | Y88: -66 | Z88: 92.00968523 | AA88: -142 | AB88: 81.31578947 | AC88: -142 | AD88: 81.31578947
A89: 3 - 18 let v KZÚV | B89: 736 | C89: 726 | D89: 726 | E89: 687 | F89: 687 | G89: 689 | H89: 689 | I89: 689 | J89: 689 | K89: 689 | L89: 689 | M89: 689 | N89: 689 | O89: 661 | P89: 661 | Q89: 661 | R89: 661 | S89: 661 | T89: 661 | U89: 656 | V89: 656 | W89: 0 | X89: 100 | Y89: 0 | Z89: 100 | AA89: -5 | AB89: 99.24357035 | AC89: -5 | AD89: 99.24357035
A90: Moravskoslezský | B90: =SUM(B85:B89) -> 197409.75 | C90: 193045.5 | D90: 194134.5 | E90: 188054.75 | F90: 189177.75 | G90: 185138 | H90: 186918 | I90: 182610 | J90: 184129 | K90: 180857.25 | L90: 182009.25 | M90: 179664.75 | N90: 180763.75 | O90: 179452.5 | P90: 180481.5 | Q90: 178828.25 | R90: 179826.25 | S90: 178882.25 | T90: 179821.25 | U90: 179102.25 | V90: 179984.25 | W90: 54 | X90: 100.0301966 | Y90: -5 | Z90: 99.99721954 | AA90: 220 | AB90: 100.1229859 | AC90: 163 | AD90: 100.0906456
A91: 3 - 5 let | B91: =B7+B13+B19+B25+B31+B37+B43+B49+B55+B61+B67+B73+B79+B85 -> 279592 | C91: 292090 | D91: 292090 | E91: 307260 | F91: 307260 | G91: 321944.5 | H91: 321944.5 | I91: 335991 | J91: 335991 | K91: 347104 | L91: 347104 | M91: 356373 | N91: 356373 | O91: 358578.5 | P91: 358578.5 | Q91: 356582.5 | R91: 356582.5 | S91: 351227.5 | T91: 351227.5 | U91: 350668.9 | V91: 350668.9 | W91: -5355 | X91: 98.49824374 | Y91: -5355 | Z91: 98.49824374 | AA91: -558.6 | AB91: 99.84095778 | AC91: -558.6 | AD91: 99.84095778
A92: 6 - 14 let | B92: 877300.5 | C92: 847107.5 | D92: 847107.5 | E92: 824881.5 | F92: 824881.5 | G92: 819857 | H92: 819857 | I92: 823982 | J92: 823982 | K92: 836442.25 | L92: 836442.25 | M92: 854936.75 | N92: 854936.75 | O92: 880185.5 | P92: 880185.5 | Q92: 905420.25 | R92: 905420.25 | S92: 929645.25 | T92: 929645.25 | U92: 946612.75 | V92: 946612.75 | W92: 24225 | X92: 102.6755531 | Y92: 24225 | Z92: 102.6755531 | AA92: 16967.5 | AB92: 101.8251586 | AC92: 16967.5 | AD92: 101.8251586
A93: 15 - 18 let | B93: 408610 | C93: 402552 | D93: 411679 | E93: 395122 | F93: 404804 | G93: 378837 | H93: 394939 | I93: 359694 | J93: 374197 | K93: 339996 | L93: 352235 | M93: 323948 | N93: 335113 | O93: 314691 | P93: 324518 | Q93: 308241 | R93: 317128 | S93: 305407 | T93: 313876 | U93: 303358 | V93: 311253 | W93: -2834 | X93: 99.08058954 | Y93: -3252 | Z93: 98.97454656 | AA93: -2049 | AB93: 99.329092 | AC93: -2623 | AD93: 99.16431967
A94: 19 - 21 let | B94: 15514 | C94: 14653 | D94: 14653 | E94: 15160 | F94: 15160 | G94: 15659 | H94: 15659 | I94: 15347 | J94: 15347 | K94: 15149 | L94: 15149 | M94: 14944 | N94: 14944 | O94: 14175 | P94: 14175 | Q94: 12663 | R94: 12663 | S94: 10915 | T94: 10915 | U94: 9422 | V94: 9422 | W94: -1748 | X94: 86.19600411 | Y94: -1748 | Z94: 86.19600411 | AA94: -1493 | AB94: 86.32157581 | AC94: -1493 | AD94: 86.32157581
A95: 3 - 18 let v KZÚV | B95: 5139 | C95: 5035 | D95: 5035 | E95: 4982 | F95: 4982 | G95: 4979 | H95: 4979 | I95: 4977 | J95: 4977 | K95: 4884 | L95: 4884 | M95: 4854 | N95: 4854 | O95: 4794 | P95: 4794 | Q95: 4776 | R95: 4776 | S95: 4786 | T95: 4786 | U95: 4768 | V95: 4768 | W95: 10 | X95: 100.2093802 | Y95: 10 | Z95: 100.2093802 | AA95: -18 | AB95: 99.62390305 | AC95: -18 | AD95: 99.62390305
A96: RgŠ celkem | B96: =SUM(B91:B95) -> 1586155.5 | C96: 1561437.5 | D96: 1570564.5 | E96: 1547405.5 | F96: 1557087.5 | G96: 1541276.5 | H96: 1557378.5 | I96: 1539991 | J96: 1554494 | K96: 1543575.25 | L96: 1555814.25 | M96: 1555055.75 | N96: 1566220.75 | O96: 1572424 | P96: 1582251 | Q96: 1587682.75 | R96: 1596569.75 | S96: 1601980.75 | T96: 1610449.75 | U96: 1614829.6 | V96: 1622724.6 | W96: 14298 | X96: 100.9005577 | Y96: 13880 | Z96: 100.8693638 | AA96: 12848.85 | AB96: 100.8020602 | AC96: 12274.85 | AD96: 100.7622001
A97: * Jedná se o nástavbové studium

Sheet Tabulka č. 2
A1: Normativní rozpis výdajů RgŠ ÚSC pomocí republikových normativů pro rok 2018
A3: Kraj | B3: Výkony | C3: Republikové normativy 2018 | H3: Normativní rozpis rozpočtu 2018
B4: 2017/18 | C4: NIV | D4: MPP + odvody | E4: MPN + odvody | F4: ONIV | G4: Zam. | H4: NIV | I4: MPP + odvody | J4: MPN + odvody | K4: ONIV | L4: Zam.
B5: vč. nástaveb | C5: celkem | D5: celkem | E5: celkem | F5: celkem | H5: celkem | I5: celkem | J5: celkem | K5: celkem
B6: 1.-2.ročníky | C6: Kč/žáka | D6: Kč/žáka | E6: Kč/žáka | F6: Kč/žáka | G6: Z./1000ž | H6: Kč | I6: Kč | J6: Kč | K6: Kč
A7: 3 - 5 let | B7: 39806.8 | C7: 50940 | D7: 38726 | E7: 11715 | F7: 499 | G7: 125.126 | H7: 2027758392 | I7: 1541558137 | J7: 466336662 | K7: 19863593 | L7: 4980.87
A8: 6 - 14 let | B8: 105278 | C8: 64601 | D8: 52550 | E8: 10974 | F8: 1077 | G8: 125.735 | H8: 6801064078 | I8: 5532358900 | J8: 1155320772 | K8: 113384406 | L8: 13237.13
A9: 15 - 18 let | B9: 39698 | C9: 76349 | D9: 60589 | E9: 14693 | F9: 1067 | G9: 143.981 | H9: 3030902602 | I9: 2405262122 | J9: 583282714 | K9: 42357766 | L9: 5715.76
A10: 19 - 21 let | B10: 1852 | C10: 65376 | D10: 53565 | E10: 11111 | F10: 700 | G10: 127.613 | H10: 121076352 | I10: 99202380 | J10: 20577572 | K10: 1296400 | L10: 236.34
A11: 3 - 18 let v KZÚV | B11: 113 | C11: 312706 | D11: 226284 | E11: 83922 | F11: 2500 | G11: 693.459 | H11: 35335778 | I11: 25570092 | J11: 9483186 | K11: 282500 | L11: 78.36
A12: Hl. m. Praha | B12: 186747.8 | H12: 12016137202 | I12: 9603951631 | J12: 2235000906 | K12: 177184665 | L12: 24248.46
A13: 3 - 5 let | B13: 47603.65 | C13: 50940 | D13: 38726 | E13: 11715 | F13: 499 | G13: 125.126 | H13: 2424929931 | I13: 1843498950 | J13: 557676760 | K13: 23754221 | L13: 5956.45
A14: 6 - 14 let | B14: 127794 | C14: 64601 | D14: 52550 | E14: 10974 | F14: 1077 | G14: 125.735 | H14: 8255620194 | I14: 6715574700 | J14: 1402411356 | K14: 137634138 | L14: 16068.18
A15: 15 - 18 let | B15: 29243 | C15: 76349 | D15: 60589 | E15: 14693 | F15: 1067 | G15: 143.981 | H15: 2232673807 | I15: 1771804127 | J15: 429667399 | K15: 31202281 | L15: 4210.44
A16: 19 - 21 let | B16: 716 | C16: 65376 | D16: 53565 | E16: 11111 | F16: 700 | G16: 127.613 | H16: 46809216 | I16: 38352540 | J16: 7955476 | K16: 501200 | L16: 91.37
A17: 3 - 18 let v KZÚV | B17: 524 | C17: 312706 | D17: 226284 | E17: 83922 | F17: 2500 | G17: 693.459 | H17: 163857944 | I17: 118572816 | J17: 43975128 | K17: 1310000 | L17: 363.37
A18: Středočeský | B18: 205880.65 | H18: 13123891092 | I18: 10487803133 | J18: 2441686119 | K18: 194401840 | L18: 26689.81
A19: 3 - 5 let | B19: 22463.4 | C19: 50940 | D19: 38726 | E19: 11715 | F19: 499 | G19: 125.126 | H19: 1144285596 | I19: 869917628 | J19: 263158731 | K19: 11209237 | L19: 2810.76
A20: 6 - 14 let | B20: 57175.5 | C20: 64601 | D20: 52550 | E20: 10974 | F20: 1077 | G20: 125.735 | H20: 3693594476 | I20: 3004572525 | J20: 627443937 | K20: 61578014 | L20: 7188.96
A21: 15 - 18 let | B21: 21439 | C21: 76349 | D21: 60589 | E21: 14693 | F21: 1067 | G21: 143.981 | H21: 1636846211 | I21: 1298967571 | J21: 315003227 | K21: 22875413 | L21: 3086.81
A22: 19 - 21 let | B22: 554 | C22: 65376 | D22: 53565 | E22: 11111 | F22: 700 | G22: 127.613 | H22: 36218304 | I22: 29675010 | J22: 6155494 | K22: 387800 | L22: 70.7
A23: 3 - 18 let v KZÚV | B23: 288 | C23: 312706 | D23: 226284 | E23: 83922 | F23: 2500 | G23: 693.459 | H23: 90059328 | I23: 65169792 | J23: 24169536 | K23: 720000 | L23: 199.72
A24: Jihočeský | B24: 101919.9 | H24: 6601003915 | I24: 5268302526 | J24: 1235930925 | K24: 96770464 | L24: 13356.95
A25: 3 - 5 let | B25: 18354.7 | C25: 50940 | D25: 38726 | E25: 11715 | F25: 499 | G25: 125.126 | H25: 934988418 | I25: 710804112 | J25: 215025311 | K25: 9158995 | L25: 2296.65
A26: 6 - 14 let | B26: 51700.25 | C26: 64601 | D26: 52550 | E26: 10974 | F26: 1077 | G26: 125.735 | H26: 3339887851 | I26: 2716848138 | J26: 567358544 | K26: 55681169 | L26: 6500.53
A27: 15 - 18 let | B27: 17523 | C27: 76349 | D27: 60589 | E27: 14693 | F27: 1067 | G27: 143.981 | H27: 1337863527 | I27: 1061701047 | J27: 257465439 | K27: 18697041 | L27: 2522.98
A28: 19 - 21 let | B28: 671 | C28: 65376 | D28: 53565 | E28: 11111 | F28: 700 | G28: 127.613 | H28: 43867296 | I28: 35942115 | J28: 7455481 | K28: 469700 | L28: 85.63
A29: 3 - 18 let v KZÚV | B29: 290 | C29: 312706 | D29: 226284 | E29: 83922 | F29: 2500 | G29: 693.459 | H29: 90684740 | I29: 65622360 | J29: 24337380 | K29: 725000 | L29: 201.1
A30: Plzeňský | B30: 88538.95 | H30: 5747291832 | I30: 4590917772 | J30: 1071642155 | K30: 84731905 | L30: 11606.89
A31: 3 - 5 let | B31: 8862.35 | C31: 50940 | D31: 38726 | E31: 11715 | F31: 499 | G31: 125.126 | H31: 451448109 | I31: 343203366 | J31: 103822430 | K31: 4422313 | L31: 1108.91
A32: 6 - 14 let | B32: 26263 | C32: 64601 | D32: 52550 | E32: 10974 | F32: 1077 | G32: 125.735 | H32: 1696616063 | I32: 1380120650 | J32: 288210162 | K32: 28285251 | L32: 3302.18
A33: 15 - 18 let | B33: 8421 | C33: 76349 | D33: 60589 | E33: 14693 | F33: 1067 | G33: 143.981 | H33: 642934929 | I33: 510219969 | J33: 123729753 | K33: 8985207 | L33: 1212.46
A34: 19 - 21 let | B34: 269 | C34: 65376 | D34: 53565 | E34: 11111 | F34: 700 | G34: 127.613 | H34: 17586144 | I34: 14408985 | J34: 2988859 | K34: 188300 | L34: 34.33
A35: 3 - 18 let v KZÚV | B35: 220 | C35: 312706 | D35: 226284 | E35: 83922 | F35: 2500 | G35: 693.459 | H35: 68795320 | I35: 49782480 | J35: 18462840 | K35: 550000 | L35: 152.56
A36: Karlovarský | B36: 44035.35 | H36: 2877380565 | I36: 2297735450 | J36: 537214044 | K36: 42431071 | L36: 5810.44
A37: 3 - 5 let | B37: 24731.55 | C37: 50940 | D37: 38726 | E37: 11715 | F37: 499 | G37: 125.126 | H37: 1259825156 | I37: 957754005 | J37: 289730108 | K37: 12341043 | L37: 3094.56
A38: 6 - 14 let | B38: 77636.5 | C38: 64601 | D38: 52550 | E38: 10974 | F38: 1077 | G38: 125.735 | H38: 5015395537 | I38: 4079798075 | J38: 851982951 | K38: 83614511 | L38: 9761.63
A39: 15 - 18 let | B39: 24787 | C39: 76349 | D39: 60589 | E39: 14693 | F39: 1067 | G39: 143.981 | H39: 1892462663 | I39: 1501819543 | J39: 364195391 | K39: 26447729 | L39: 3568.86
A40: 19 - 21 let | B40: 707 | C40: 65376 | D40: 53565 | E40: 11111 | F40: 700 | G40: 127.613 | H40: 46220832 | I40: 37870455 | J40: 7855477 | K40: 494900 | L40: 90.22
A41: 3 - 18 let v KZÚV | B41: 768 | C41: 312706 | D41: 226284 | E41: 83922 | F41: 2500 | G41: 693.459 | H41: 240158208 | I41: 173786112 | J41: 64452096 | K41: 1920000 | L41: 532.58
A42: Ústecký | B42: 128630.05 | H42: 8454062396 | I42: 6751028190 | J42: 1578216023 | K42: 124818183 | L42: 17047.85
A43: 3 - 5 let | B43: 14593.35 | C43: 50940 | D43: 38726 | E43: 11715 | F43: 499 | G43: 125.126 | H43: 743385249 | I43: 565142072 | J43: 170961095 | K43: 7282082 | L43: 1826.01
A44: 6 - 14 let | B44: 41220.5 | C44: 64601 | D44: 52550 | E44: 10974 | F44: 1077 | G44: 125.735 | H44: 2662885521 | I44: 2166137275 | J44: 452353767 | K44: 44394479 | L44: 5182.86
A45: 15 - 18 let | B45: 12423 | C45: 76349 | D45: 60589 | E45: 14693 | F45: 1067 | G45: 143.981 | H45: 948483627 | I45: 752697147 | J45: 182531139 | K45: 13255341 | L45: 1788.68
A46: 19 - 21 let | B46: 248 | C46: 65376 | D46: 53565 | E46: 11111 | F46: 700 | G46: 127.613 | H46: 16213248 | I46: 13284120 | J46: 2755528 | K46: 173600 | L46: 31.65
A47: 3 - 18 let v KZÚV | B47: 230 | C47: 312706 | D47: 226284 | E47: 83922 | F47: 2500 | G47: 693.459 | H47: 71922380 | I47: 52045320 | J47: 19302060 | K47: 575000 | L47: 159.5
A48: Liberecký | B48: 68714.85 | H48: 4442890025 | I48: 3549305934 | J48: 827903589 | K48: 65680502 | L48: 8988.7
A49: 3 - 5 let | B49: 18883.6 | C49: 50940 | D49: 38726 | E49: 11715 | F49: 499 | G49: 125.126 | H49: 961930584 | I49: 731286294 | J49: 221221374 | K49: 9422916 | L49: 2362.83
A50: 6 - 14 let | B50: 49515.5 | C50: 64601 | D50: 52550 | E50: 10974 | F50: 1077 | G50: 125.735 | H50: 3198750816 | I50: 2602039525 | J50: 543383097 | K50: 53328194 | L50: 6225.83
A51: 15 - 18 let | B51: 17697 | C51: 76349 | D51: 60589 | E51: 14693 | F51: 1067 | G51: 143.981 | H51: 1351148253 | I51: 1072243533 | J51: 260022021 | K51: 18882699 | L51: 2548.03
A52: 19 - 21 let | B52: 524 | C52: 65376 | D52: 53565 | E52: 11111 | F52: 700 | G52: 127.613 | H52: 34257024 | I52: 28068060 | J52: 5822164 | K52: 366800 | L52: 66.87
A53: 3 - 18 let v KZÚV | B53: 266 | C53: 312706 | D53: 226284 | E53: 83922 | F53: 2500 | G53: 693.459 | H53: 83179796 | I53: 60191544 | J53: 22323252 | K53: 665000 | L53: 184.46
A54: Královéhradecký | B54: 86886.1 | H54: 5629266473 | I54: 4493828956 | J54: 1052771908 | K54: 82665609 | L54: 11388.02
A55: 3 - 5 let | B55: 18364.4 | C55: 50940 | D55: 38726 | E55: 11715 | F55: 499 | G55: 125.126 | H55: 935482536 | I55: 711179754 | J55: 215138946 | K55: 9163836 | L55: 2297.86
A56: 6 - 14 let | B56: 47082 | C56: 64601 | D56: 52550 | E56: 10974 | F56: 1077 | G56: 125.735 | H56: 3041544282 | I56: 2474159100 | J56: 516677868 | K56: 50707314 | L56: 5919.86
A57: 15 - 18 let | B57: 16836 | C57: 76349 | D57: 60589 | E57: 14693 | F57: 1067 | G57: 143.981 | H57: 1285411764 | I57: 1020076404 | J57: 247371348 | K57: 17964012 | L57: 2424.06
A58: 19 - 21 let | B58: 673 | C58: 65376 | D58: 53565 | E58: 11111 | F58: 700 | G58: 127.613 | H58: 43998048 | I58: 36049245 | J58: 7477703 | K58: 471100 | L58: 85.88
A59: 3 - 18 let v KZÚV | B59: 179 | C59: 312706 | D59: 226284 | E59: 83922 | F59: 2500 | G59: 693.459 | H59: 55974374 | I59: 40504836 | J59: 15022038 | K59: 447500 | L59: 124.13
A60: Pardubický | B60: 83134.4 | H60: 5362411004 | I60: 4281969339 | J60: 1001687903 | K60: 78753762 | L60: 10851.79
A61: 3 - 5 let | B61: 17507.2 | C61: 50940 | D61: 38726 | E61: 11715 | F61: 499 | G61: 125.126 | H61: 891816768 | I61: 677983827 | J61: 205096848 | K61: 8736093 | L61: 2190.61
A62: 6 - 14 let | B62: 45665.75 | C62: 64601 | D62: 52550 | E62: 10974 | F62: 1077 | G62: 125.735 | H62: 2950053117 | I62: 2399735163 | J62: 501135941 | K62: 49182013 | L62: 5741.78
A63: 15 - 18 let | B63: 15234 | C63: 76349 | D63: 60589 | E63: 14693 | F63: 1067 | G63: 143.981 | H63: 1163100666 | I63: 923012826 | J63: 223833162 | K63: 16254678 | L63: 2193.41
A64: 19 - 21 let | B64: 327 | C64: 65376 | D64: 53565 | E64: 11111 | F64: 700 | G64: 127.613 | H64: 21377952 | I64: 17515755 | J64: 3633297 | K64: 228900 | L64: 41.73
A65: 3 - 18 let v KZÚV | B65: 231 | C65: 312706 | D65: 226284 | E65: 83922 | F65: 2500 | G65: 693.459 | H65: 72235086 | I65: 52271604 | J65: 19385982 | K65: 577500 | L65: 160.19
A66: Vysočina | B66: 78964.95 | H66: 5098583589 | I66: 4070519175 | J66: 953085230 | K66: 74979184 | L66: 10327.72
A67: 3 - 5 let | B67: 40321.05 | C67: 50940 | D67: 38726 | E67: 11715 | F67: 499 | G67: 125.126 | H67: 2053954287 | I67: 1561472982 | J67: 472361101 | K67: 20120204 | L67: 5045.21
A68: 6 - 14 let | B68: 103690.75 | C68: 64601 | D68: 52550 | E68: 10974 | F68: 1077 | G68: 125.735 | H68: 6698526142 | I68: 5448948913 | J68: 1137902291 | K68: 111674938 | L68: 13037.56
A69: 15 - 18 let | B69: 34113 | C69: 76349 | D69: 60589 | E69: 14693 | F69: 1067 | G69: 143.981 | H69: 2604493437 | I69: 2066872557 | J69: 501222309 | K69: 36398571 | L69: 4911.62
A70: 19 - 21 let | B70: 1368 | C70: 65376 | D70: 53565 | E70: 11111 | F70: 700 | G70: 127.613 | H70: 89434368 | I70: 73276920 | J70: 15199848 | K70: 957600 | L70: 174.57
A71: 3 - 18 let v KZÚV | B71: 349 | C71: 312706 | D71: 226284 | E71: 83922 | F71: 2500 | G71: 693.459 | H71: 109134394 | I71: 78973116 | J71: 29288778 | K71: 872500 | L71: 242.02
A72: Jihomoravský | B72: 179841.75 | H72: 11555542628 | I72: 9229544488 | J72: 2155974327 | K72: 170023813 | L72: 23410.98
A73: 3 - 5 let | B73: 21504 | C73: 50940 | D73: 38726 | E73: 11715 | F73: 499 | G73: 125.126 | H73: 1095413760 | I73: 832763904 | J73: 251919360 | K73: 10730496 | L73: 2690.71
A74: 6 - 14 let | B74: 56695.25 | C74: 64601 | D74: 52550 | E74: 10974 | F74: 1077 | G74: 125.735 | H74: 3662569846 | I74: 2979335388 | J74: 622173674 | K74: 61060784 | L74: 7128.58
A75: 15 - 18 let | B75: 20917 | C75: 76349 | D75: 60589 | E75: 14693 | F75: 1067 | G75: 143.981 | H75: 1596992033 | I75: 1267340113 | J75: 307333481 | K75: 22318439 | L75: 3011.65
A76: 19 - 21 let | B76: 483 | C76: 65376 | D76: 53565 | E76: 11111 | F76: 700 | G76: 127.613 | H76: 31576608 | I76: 25871895 | J76: 5366613 | K76: 338100 | L76: 61.64
A77: 3 - 18 let v KZÚV | B77: 360 | C77: 312706 | D77: 226284 | E77: 83922 | F77: 2500 | G77: 693.459 | H77: 112574160 | I77: 81462240 | J77: 30211920 | K77: 900000 | L77: 249.65
A78: Olomoucký | B78: 99959.25 | H78: 6499126407 | I78: 5186773540 | J78: 1217005048 | K78: 95347819 | L78: 13142.23
A79: 3 - 5 let | B79: 19447.1 | C79: 50940 | D79: 38726 | E79: 11715 | F79: 499 | G79: 125.126 | H79: 990635275 | I79: 753108395 | J79: 227822777 | K79: 9704103 | L79: 2433.34
A80: 6 - 14 let | B80: 50735.25 | C80: 64601 | D80: 52550 | E80: 10974 | F80: 1077 | G80: 125.735 | H80: 3277547886 | I80: 2666137388 | J80: 556768634 | K80: 54641864 | L80: 6379.2
A81: 15 - 18 let | B81: 18598 | C81: 76349 | D81: 60589 | E81: 14693 | F81: 1067 | G81: 143.981 | H81: 1419938702 | I81: 1126834222 | J81: 273260414 | K81: 19844066 | L81: 2677.76
A82: 19 - 21 let | B82: 412 | C82: 65376 | D82: 53565 | E82: 11111 | F82: 700 | G82: 127.613 | H82: 26934912 | I82: 22068780 | J82: 4577732 | K82: 288400 | L82: 52.58
A83: 3 - 18 let v KZÚV | B83: 294 | C83: 312706 | D83: 226284 | E83: 83922 | F83: 2500 | G83: 693.459 | H83: 91935564 | I83: 66527496 | J83: 24673068 | K83: 735000 | L83: 203.88
A84: Zlínský | B84: 89486.35 | H84: 5806992339 | I84: 4634676281 | J84: 1087102625 | K84: 85213433 | L84: 11746.76
A85: 3 - 5 let | B85: 38225.75 | C85: 50940 | D85: 38726 | E85: 11715 | F85: 499 | G85: 125.126 | H85: 1947219705 | I85: 1480330395 | J85: 447814661 | K85: 19074649 | L85: 4783.04
A86: 6 - 14 let | B86: 106160.5 | C86: 64601 | D86: 52550 | E86: 10974 | F86: 1077 | G86: 125.735 | H86: 6858074461 | I86: 5578734275 | J86: 1165005327 | K86: 114334859 | L86: 13348.09
A87: 15 - 18 let | B87: 34324 | C87: 76349 | D87: 60589 | E87: 14693 | F87: 1067 | G87: 143.981 | H87: 2620603076 | I87: 2079656836 | J87: 504322532 | K87: 36623708 | L87: 4942
A88: 19 - 21 let | B88: 618 | C88: 65376 | D88: 53565 | E88: 11111 | F88: 700 | G88: 127.613 | H88: 40402368 | I88: 33103170 | J88: 6866598 | K88: 432600 | L88: 78.86
A89: 3 - 18 let v KZÚV | B89: 656 | C89: 312706 | D89: 226284 | E89: 83922 | F89: 2500 | G89: 693.459 | H89: 205135136 | I89: 148442304 | J89: 55052832 | K89: 1640000 | L89: 454.91
A90: Moravskoslezský | B90: 179984.25 | H90: 11671434746 | I90: 9320266980 | J90: 2179061950 | K90: 172105816 | L90: 23606.9
A91: 3 - 5 let | B91: 350668.9 | C91: 50940 | D91: 38726 | E91: 11715 | F91: 499 | G91: 125.126 | H91: 17863073766 | I91: 13580003821 | J91: 4108086164 | K91: 174983781 | L91: 43877.81
A92: 6 - 14 let | B92: 946612.75 | C92: 64601 | D92: 52550 | E92: 10974 | F92: 1077 | G92: 125.735 | H92: 61152130270 | I92: 49744500015 | J92: 10388128321 | K92: 1019501934 | L92: 119022.37
A93: 15 - 18 let | B93: 311253 | C93: 76349 | D93: 60589 | E93: 14693 | F93: 1067 | G93: 143.981 | H93: 23763855297 | I93: 18858508017 | J93: 4573240329 | K93: 332106951 | L93: 44814.52
A94: 19 - 21 let | B94: 9422 | C94: 65376 | D94: 53565 | E94: 11111 | F94: 700 | G94: 127.613 | H94: 615972672 | I94: 504689430 | J94: 104687842 | K94: 6595400 | L94: 1202.37
A95: 3 - 18 let v KZÚV | B95: 4768 | C95: 312706 | D95: 226284 | E95: 83922 | F95: 2500 | G95: 693.459 | H95: 1490982208 | I95: 1078922112 | J95: 400140096 | K95: 11920000 | L95: 3306.43
A96: RgŠ celkem | B96: 1622724.6 | H96: 104886014213 | I96: 83766623395 | J96: 19574282752 | K96: 1545108066 | L96: 212223.5

Sheet Tabulka č. 3
B1: Rozpis rozpočtu RgŠ ÚSC 2018 ve struktuře závazných ukazatelů (v Kč) | M1: Konečný normativní rozpočet 2017 (po 17. úpravě)
C2: Závazné ukazatele | G2: Orientační ukazatele | J2: Záv. uk. | N2: Závazné ukazatele | R2: Orientační ukazatele | U2: Záv. uk.
B3: Kraj | C3: NIV | D3: MP | E3: z toho: | G3: Odvody | H3: Odvody | I3: ONIV | J3: Počet | M3: Kraj | N3: NIV | O3: MP | P3: z toho: | R3: Odvody | S3: Odvody | T3: ONIV | U3: Počet
C4: celkem | D4: celkem | E4: platy | F4: OON | G4: pojistné | H4: FKSP | J4: zam. | N4: celkem | O4: celkem | P4: platy | Q4: OON | R4: pojistné | S4: FKSP | U4: zam.
A5: 1 | B5: Hl.m.Praha | C5: 12345674682 | D5: 8949836800 | E5: 8855168903 | F5: 94667897 | G5: 3042944512 | H5: 177103378 | I5: 175789992 | J5: 25122.06 | L5: 1 | M5: Hl.m.Praha | N5: 10664941345 | O5: 7713378828 | P5: 7609712712 | Q5: 103666116 | R5: 2622548800 | S5: 152194255 | T5: 176819462 | U5: 24795.8
A6: 2 | B6: Středočeský | C6: 13518350673 | D6: 9800401157 | E6: 9699482706 | F6: 100918451 | G6: 3332136393 | H6: 193989654 | I6: 191823469 | J6: 27757.37 | L6: 2 | M6: Středočeský | N6: 11659144912 | O6: 8425524430 | P6: 8315013643 | Q6: 110510787 | R6: 2864678307 | S6: 166300272 | T6: 202641903 | U6: 27278.8
A7: 3 | B7: Jihočeský | C7: 6775101310 | D7: 4911697680 | E7: 4864694783 | F7: 47002897 | G7: 1669977212 | H7: 97293895 | I7: 96132523 | J7: 13827.05 | L7: 3 | M7: Jihočeský | N7: 5937599818 | O7: 4291790013 | P7: 4240319473 | Q7: 51470540 | R7: 1459208607 | S7: 84806389 | T7: 101794809 | U7: 13834.2
A8: 4 | B8: Plzeňský | C8: 5914725109 | D8: 4287760616 | E8: 4259528643 | F8: 28231973 | G8: 1457838609 | H8: 85190573 | I8: 83935311 | J8: 12066.42 | L8: 4 | M8: Plzeňský | N8: 5147598748 | O8: 3719452625 | P8: 3688537193 | Q8: 30915432 | R8: 1264613892 | S8: 73770744 | T8: 89761487 | U8: 11965.85
A9: 5 | B9: Karlovarský | C9: 3010075133 | D9: 2182549387 | E9: 2158961762 | F9: 23587625 | G9: 742066793 | H9: 43179235 | I9: 42279718 | J9: 6162.18 | L9: 5 | M9: Karlovarský | N9: 2676864423 | O9: 1929251252 | P9: 1903421615 | Q9: 25829637 | R9: 655275424 | S9: 38068631 | T9: 54269116 | U9: 6206.5
A10: 6 | B10: Ústecký | C10: 8767184143 | D10: 6356551144 | E10: 6296039923 | F10: 60511221 | G10: 2161227390 | H10: 125920798 | I10: 123484811 | J10: 17892.47 | L10: 6 | M10: Ústecký | N10: 7726817272 | O10: 5574489553 | P10: 5508226718 | Q10: 66262835 | R10: 1895312908 | S10: 110224395 | T10: 146790416 | U10: 17903.17
A11: 7 | B11: Liberecký | C11: 4552608073 | D11: 3300058846 | E11: 3273142276 | F11: 26916570 | G11: 1122020007 | H11: 65462846 | I11: 65066374 | J11: 9274.23 | L11: 7 | M11: Liberecký | N11: 3992352222 | O11: 2884858636 | P11: 2855383636 | Q11: 29475000 | R11: 980851937 | S11: 57107670 | T11: 69533979 | U11: 9295.9
A12: 8 | B12: Královéhradecký | C12: 5806196469 | D12: 4209807323 | E12: 4157838411 | F12: 51968912 | G12: 1431334489 | H12: 83156769 | I12: 81897888 | J12: 11847.58 | L12: 8 | M12: Královéhradecký | N12: 5112476289 | O12: 3694860417 | P12: 3637951841 | Q12: 56908576 | R12: 1256252543 | S12: 72759038 | T12: 88604291 | U12: 11886.47
A13: 9 | B13: Pardubický | C13: 5525995646 | D13: 4006611562 | E13: 3965800442 | F13: 40811120 | G13: 1362247931 | H13: 79316009 | I13: 77820144 | J13: 11300.16 | L13: 9 | M13: Pardubický | N13: 4848811962 | O13: 3506742966 | P13: 3462052734 | Q13: 44690232 | R13: 1192292609 | S13: 69241054 | T13: 80535333 | U13: 11300.8
A14: 10 | B14: Vysočina | C14: 5268394724 | D14: 3819924705 | E14: 3779653835 | F14: 40270870 | G14: 1298774400 | H14: 75593076 | I14: 74102543 | J14: 10788.3 | L14: 10 | M14: Vysočina | N14: 4631898972 | O14: 3345652621 | P14: 3301553990 | Q14: 44098631 | R14: 1137522471 | S14: 66030821 | T14: 82693059 | U14: 10783.5
A15: 11 | B15: Jihomoravský | C15: 11994584514 | D15: 8696544078 | E15: 8644154255 | F15: 52389823 | G15: 2956824987 | H15: 172883086 | I15: 168332363 | J15: 24569.72 | L15: 11 | M15: Jihomoravský | N15: 10377872050 | O15: 7495547885 | P15: 7438178390 | Q15: 57369495 | R15: 2548486280 | S15: 148763568 | T15: 185074317 | U15: 24177.12
A16: 12 | B16: Olomoucký | C16: 6714982532 | D16: 4868554238 | E16: 4827963959 | F16: 40590279 | G16: 1655308442 | H16: 96559279 | I16: 94560573 | J16: 13722.51 | L16: 12 | M16: Olomoucký | N16: 5874615604 | O16: 4245966957 | P16: 4201518557 | Q16: 44448400 | R16: 1443628724 | S16: 84030370 | T16: 100989553 | U16: 13681.19
A17: 13 | B17: Zlínský kraj | C17: 5989838741 | D17: 4342975676 | E17: 4289708795 | F17: 53266881 | G17: 1476611730 | H17: 85794176 | I17: 84457159 | J17: 12237.56 | L17: 13 | M17: Zlínský kraj | N17: 5248449310 | O17: 3793768841 | P17: 3735438923 | Q17: 58329918 | R17: 1289881403 | S17: 74708779 | T17: 90090287 | U17: 12220.6
A18: 14 | B18: Moravskoslezský | C18: 12071463522 | D18: 8752056649 | E18: 8691585686 | F18: 60470963 | G18: 2975699260 | H18: 173831714 | I18: 169875899 | J18: 24694.44 | L18: 14 | M18: Moravskoslezský | N18: 10629959789 | O18: 7674167777 | P18: 7607949026 | Q18: 66218751 | R18: 2609217143 | S18: 152159281 | T18: 194415588 | U18: 24708.83
B20: RgŠ celkem: | C20: 108255175271 | D20: 78485329861 | E20: 77763724379 | F20: 721605482 | G20: 26685012155 | H20: 1555274488 | I20: 1529558767 | J20: 221262.05 | M20: RgŠ celkem: | N20: 94529402716 | O20: 68295452801 | P20: 67505258451 | Q20: 790194350 | R20: 23219771048 | S20: 1350165267 | T20: 1664013600 | U20: 220038.73
B22: Rozdíl 2018 - 2017 | M22: Index 2018/2017
C23: Závazné ukazatele | G23: Orientační ukazatele | J23: Záv. uk. | N23: Závazné ukazatele | R23: Orientační ukazatele | U23: Záv. uk.
B24: Kraj | C24: NIV | D24: MP | E24: z toho: | G24: Odvody | H24: Odvody | I24: ONIV | J24: Počet | M24: Kraj | N24: NIV | O24: MP | P24: z toho: | R24: Odvody | S24: Odvody | T24: ONIV | U24: Počet
C25: celkem | D25: celkem | E25: platy | F25: OON | G25: pojistné | H25: FKSP | J25: zam. | N25: celkem | O25: celkem | P25: platy | Q25: OON | R25: pojistné | S25: FKSP | U25: zam.
A26: 1 | B26: Hl.m.Praha | C26: 1680733337 | D26: 1236457972 | E26: 1245456191 | F26: -8998219 | G26: 420395712 | H26: 24909123 | I26: -1029470 | J26: 326.26 | L26: 1 | M26: Hl.m.Praha | N26: 1.157594241 | O26: 1.160300434 | P26: 1.163666651 | Q26: 0.9131999987 | R26: 1.160300434 | S26: 1.163666644 | T26: 0.9941778468 | U26: 1.013157874
A27: 2 | B27: Středočeský | C27: 1859205761 | D27: 1374876727 | E27: 1384469063 | F27: -9592336 | G27: 467458086 | H27: 27689382 | I27: -10818434 | J27: 478.57 | L27: 2 | M27: Středočeský | N27: 1.159463303 | O27: 1.163179959 | P27: 1.16650232 | Q27: 0.9132000028 | R27: 1.163179958 | S27: 1.166502325 | T27: 0.9466130458 | U27: 1.01754366
A28: 3 | B28: Jihočeský | C28: 837501492 | D28: 619907667 | E28: 624375310 | F28: -4467643 | G28: 210768605 | H28: 12487506 | I28: -5662286 | J28: -7.15 | L28: 3 | M28: Jihočeský | N28: 1.141050512 | O28: 1.144440354 | P28: 1.147247233 | Q28: 0.9131999975 | R28: 1.144440352 | S28: 1.147247232 | T28: 0.9443754936 | U28: 0.9994831649
A29: 4 | B29: Plzeňský | C29: 767126361 | D29: 568307991 | E29: 570991450 | F29: -2683459 | G29: 193224717 | H29: 11419829 | I29: -5826176 | J29: 100.57 | L29: 4 | M29: Plzeňský | N29: 1.14902606 | O29: 1.152793448 | P29: 1.154801598 | Q29: 0.9132000161 | R29: 1.152793448 | S29: 1.154801597 | T29: 0.9350926974 | U29: 1.008404752
A30: 5 | B30: Karlovarský | C30: 333210710 | D30: 253298135 | E30: 255540147 | F30: -2242012 | G30: 86791369 | H30: 5110604 | I30: -11989398 | J30: -44.32 | L30: 5 | M30: Karlovarský | N30: 1.124477993 | O30: 1.131293493 | P30: 1.134253045 | Q30: 0.913200019 | R30: 1.132450212 | S30: 1.134247118 | T30: 0.7790751189 | U30: 0.9928590993
A31: 6 | B31: Ústecký | C31: 1040366871 | D31: 782061591 | E31: 787813205 | F31: -5751614 | G31: 265914482 | H31: 15696403 | I31: -23305605 | J31: -10.7 | L31: 6 | M31: Ústecký | N31: 1.134643649 | O31: 1.140292951 | P31: 1.143024833 | Q31: 0.9132000012 | R31: 1.140301098 | S31: 1.142404075 | T31: 0.8412321074 | U31: 0.9994023405
A32: 7 | B32: Liberecký | C32: 560255851 | D32: 415200210 | E32: 417758640 | F32: -2558430 | G32: 141168070 | H32: 8355176 | I32: -4467605 | J32: -21.67 | L32: 7 | M32: Liberecký | N32: 1.14033227 | O32: 1.143923936 | P32: 1.146305608 | Q32: 0.9132 | R32: 1.143923935 | S32: 1.146305671 | T32: 0.9357493262 | U32: 0.9976688648
A33: 8 | B33: Královéhradecký | C33: 693720180 | D33: 514946906 | E33: 519886570 | F33: -4939664 | G33: 175081946 | H33: 10397731 | I33: -6706403 | J33: -38.89 | L33: 8 | M33: Královéhradecký | N33: 1.135691618 | O33: 1.139368433 | P33: 1.142906391 | Q33: 0.913200007 | R33: 1.139368431 | S33: 1.142906384 | T33: 0.9243106296 | U33: 0.9967282128
A34: 9 | B34: Pardubický | C34: 677183684 | D34: 499868596 | E34: 503747708 | F34: -3879112 | G34: 169955322 | H34: 10074955 | I34: -2715189 | J34: -0.64 | L34: 9 | M34: Pardubický | N34: 1.139659712 | O34: 1.142544977 | P34: 1.145505498 | Q34: 0.9132000031 | R34: 1.142544977 | S34: 1.145505512 | T34: 0.9662857419 | U34: 0.9999433668
A35: 10 | B35: Vysočina | C35: 636495752 | D35: 474272084 | E35: 478099845 | F35: -3827761 | G35: 161251929 | H35: 9562255 | I35: -8590516 | J35: 4.8 | L35: 10 | M35: Vysočina | N35: 1.137415724 | O35: 1.141757719 | P35: 1.144810549 | Q35: 0.9132000039 | R35: 1.141757137 | S35: 1.144815025 | T35: 0.8961156341 | U35: 1.000445124
A36: 11 | B36: Jihomoravský | C36: 1616712464 | D36: 1200996193 | E36: 1205975865 | F36: -4979672 | G36: 408338707 | H36: 24119518 | I36: -16741954 | J36: 392.6 | L36: 11 | M36: Jihomoravský | N36: 1.155784582 | O36: 1.160227939 | P36: 1.162133227 | Q36: 0.9132000029 | R36: 1.16022794 | S36: 1.162133231 | T36: 0.9095392906 | U36: 1.016238493
A37: 12 | B37: Olomoucký | C37: 840366928 | D37: 622587281 | E37: 626445402 | F37: -3858121 | G37: 211679718 | H37: 12528909 | I37: -6428980 | J37: 41.32 | L37: 12 | M37: Olomoucký | N37: 1.143050539 | O37: 1.14663027 | P37: 1.149099758 | Q37: 0.9132000027 | R37: 1.146630304 | S37: 1.149099772 | T37: 0.936340148 | U37: 1.003020205
A38: 13 | B38: Zlínský kraj | C38: 741389431 | D38: 549206835 | E38: 554269872 | F38: -5063037 | G38: 186730327 | H38: 11085397 | I38: -5633128 | J38: 16.96 | L38: 13 | M38: Zlínský kraj | N38: 1.141258758 | O38: 1.144765498 | P38: 1.148381458 | Q38: 0.913199998 | R38: 1.144765501 | S38: 1.148381451 | T38: 0.9374724159 | U38: 1.001387821
A39: 14 | B39: Moravskoslezský | C39: 1441503733 | D39: 1077888872 | E39: 1083636660 | F39: -5747788 | G39: 366482117 | H39: 21672433 | I39: -24539689 | J39: -14.39 | L39: 14 | M39: Moravskoslezský | N39: 1.135607637 | O39: 1.140456777 | P39: 1.142434795 | Q39: 0.9131999938 | R39: 1.140456734 | S39: 1.142432541 | T39: 0.8737771531 | U39: 0.9994176171
B41: RgŠ celkem: | C41: 13725772555 | D41: 10189877060 | E41: 10258465928 | F41: -68588868 | G41: 3465241107 | H41: 205109221 | I41: -134454833 | J41: 1223.32 | M41: RgŠ celkem: | N41: 1.145201093 | O41: 1.149202863 | P41: 1.151965434 | Q41: 0.913200002 | R41: 1.149236661 | S41: 1.151914159 | T41: 0.9191984771 | U41: 1.005559567
